fUSD/lending_fUSD_20240818
["ID","MTS","AMOUNT","RATE_DAILY","PERIOD"]
[335210619,1723981837732,-195.75764,0.0001071,2]
[335210620,1723981837741,-379.46566144,0.00010838,2]
[335210621,1723981837750,-187.40272822,0.00010852,2]
[335210622,1723981837806,-1899.67092241,0.00010852,2]
[335210804,1723981839692,-7188.49996111,0.00010852,2]
[335210806,1723981839701,-150.0,0.00010898,2]
[335210808,1723981839711,-454.1136,0.00010899,2]
[335210810,1723981839721,-10739.70209962,0.00010899,2]
[335210828,1723981839904,-16207.01800038,0.00010899,2]
[335210830,1723981839914,-617.2331,0.00010899,2]
[335210832,1723981839924,-427.9137776,0.00010899,2]
[335210834,1723981839933,-427.91377755,0.00010899,2]
[335210836,1723981839943,-427.91377755,0.00010899,2]
[335210838,1723981839955,-427.91377755,0.00010899,2]
[335210840,1723981839965,-427.91377755,0.00010899,2]
[335210842,1723981839975,-427.91377755,0.000109,2]
[335210844,1723981839984,-427.91377755,0.000109,2]
[335210846,1723981839993,-1118.4846,0.000109,2]
[335210848,1723981840003,-3638.59,0.000109,2]
[335210850,1723981840013,-1263.138,0.000109,2]
[335210852,1723981840023,-427.91377755,0.000109,2]
[335210854,1723981840032,-427.91377755,0.000109,2]
[335210856,1723981840043,-556.0,0.000109,2]
[335210858,1723981840053,-446.0,0.000109,2]
[335210860,1723981840062,-150.0,0.000109,2]
[335210862,1723981840071,-1137.0,0.000109,2]
[335210864,1723981840081,-810.0,0.000109,2]
[335210866,1723981840090,-1673.0,0.000109,2]
[335210868,1723981840099,-17982.31230162,0.000109,2]
[335210873,1723981840132,-1289.90576999,0.000109,2]
[335211098,1723981842696,-292.35005528,0.000109,2]
[335211105,1723981842750,-949.31414876,0.000109,2]
[335211402,1723981845852,-1237.11772435,0.000109,2]
[335211404,1723981845862,-2492.403,0.000109,2]
[335211406,1723981845871,-150.0,0.000109,2]
[335211408,1723981845881,-168.65789789,0.000109,2]
[335211410,1723981845890,-168.65789786,0.000109,2]
[335211412,1723981845899,-168.65789786,0.000109,2]
[335211414,1723981845909,-168.65789786,0.000109,2]
[335211416,1723981845918,-427.91377755,0.000109,2]
[335211417,1723981845927,-319.80488603,0.000109,2]
[335211419,1723981845936,-199.9774,0.00010945,2]
[335211421,1723981845945,-420.62437439,0.00010951,2]
[335211423,1723981845954,-250.0,0.00010959,2]
[335211425,1723981845963,-500.0,0.0001096,2]
[335211427,1723981845973,-155.0,0.00010979,2]
[335211429,1723981845982,-419.31016917,0.00010989,2]
[335211431,1723981845991,-200.0,0.0001099,2]
[335211433,1723981846000,-573.39290708,0.00010993,2]
[335211434,1723981846010,-954.3029671,0.00010998,2]
[335211436,1723981846023,-936.8586704,0.00010998,2]
[335211438,1723981846037,-7528.9671458,0.00010998,2]
[335211440,1723981846047,-5393.6228135,0.00010998,2]
[335211442,1723981846056,-151.640456,0.00010998,2]
[335211444,1723981846064,-151.0,0.00010998,2]
[335211446,1723981846074,-153.487752,0.00010998,2]
[335211448,1723981846083,-151.0,0.00010998,2]
[335211450,1723981846092,-2000.0,0.00010999,2]
[335211452,1723981846101,-2000.0,0.00010999,2]
[335211454,1723981846110,-2000.0,0.00010999,2]
[335211456,1723981846119,-2000.0,0.00010999,2]
[335211458,1723981846129,-2000.0,0.00010999,2]
[335211460,1723981846138,-2000.0,0.00010999,2]
[335211462,1723981846146,-2000.0,0.00010999,2]
[335211463,1723981846155,-2000.0,0.00010999,2]
[335211465,1723981846166,-919.58203572,0.00010999,2]
[335211467,1723981846178,-518.46682846,0.00010999,2]
[335211469,1723981846188,-2000.0,0.00010999,2]
[335211471,1723981846197,-3183.46090874,0.00010999,2]
[335211473,1723981846208,-369.15130269,0.00010999,2]
[335211475,1723981846220,-1906.18600947,0.00010999,2]
[335211607,1723981883367,500.0,9.275e-05,2]
[335211608,1723981883522,500.0,9.275e-05,2]
[335211609,1723981889534,500.0,8.22e-05,2]
[335211612,1723981941359,1404.8022,9.888e-05,2]
[335211613,1723981952751,1271.5286686,8.22e-05,2]
[335211614,1723981959278,155.11978359,8.22e-05,2]
[335211615,1723981973125,694.65963575,8.22e-05,2]
[335211616,1723981987599,500.0,9.275e-05,2]
[335211617,1723982035199,936.5228582,0.00014,50]
[335211618,1723982065776,900.0,0.00012999,30]
[335211619,1723982085946,500.0,9.275e-05,2]
[335211620,1723982086298,979.0,9.275e-05,2]
[335211621,1723982093492,600.0,0.00012,25]
[335211627,1723982135598,384.92,8.219e-05,2]
[335211632,1723982178883,966.65,9.947e-05,2]
[335211634,1723982269972,187.32,9.935e-05,2]
[335211635,1723982297387,328.0,9.931e-05,2]
[335211636,1723982403083,150.0,9.931e-05,2]
[335211637,1723982403395,150.0,9.931e-05,2]
[335211638,1723982403488,150.0,9.931e-05,2]
[335211639,1723982403658,150.0,9.931e-05,2]
[335211640,1723982403854,150.0,9.931e-05,2]
[335211641,1723982404698,150.0,9.931e-05,2]
[335211642,1723982404918,150.0,9.931e-05,2]
[335211643,1723982405113,150.0,9.931e-05,2]
[335211644,1723982405315,150.0,9.931e-05,2]
[335211645,1723982405510,150.0,9.931e-05,2]
[335211646,1723982405879,150.0,9.931e-05,2]
[335211647,1723982405918,150.0,9.931e-05,2]
[335211648,1723982406114,150.0,9.931e-05,2]
[335211649,1723982406299,150.0,9.931e-05,2]
[335211650,1723982406474,150.0,9.931e-05,2]
[335211651,1723982406945,150.0,9.931e-05,2]
[335211652,1723982407155,150.0,9.931e-05,2]
[335211653,1723982407335,150.0,9.931e-05,2]
[335211654,1723982407536,150.0,9.931e-05,2]
[335211655,1723982407735,202.39268906,9.931e-05,2]
[335211657,1723982442261,200.0,9.929e-05,2]
[335211658,1723982485928,250.0,9.918e-05,2]
[335211659,1723982493195,452.47,9.924e-05,2]
[335211661,1723982522792,500.0,9.966e-05,2]
[335211667,1723982610178,357.45302385,9.943e-05,2]
[335211684,1723982655731,365.67,8.219e-05,2]
[335211706,1723982705012,640.16,9.936e-05,2]
[335211720,1723982730915,187.32,9.936e-05,2]
[335211721,1723982753928,183.1,9.937e-05,2]
[335211722,1723982763991,737.6,9.939e-05,2]
[335211730,1723982952364,11200.6717,9.894e-05,2]
[335211737,1723982967609,3098.2828,9.926e-05,2]
[335211738,1723983005654,-3038.44141742,9.988e-05,2]
[335211739,1723983005720,-2018.77694515,9.988e-05,2]
[335211740,1723983005783,-1583.98902256,9.988e-05,2]
[335211741,1723983005813,-1454.45239486,9.988e-05,2]
[335211742,1723983007641,693.63628776,9.926e-05,2]
[335211754,1723983031892,-100.1873595,9.988e-05,2]
[335211755,1723983031902,-173.51,9.994e-05,2]
[335211756,1723983031911,-300.0,9.999e-05,2]
[335211757,1723983031920,-300.0,9.999e-05,2]
[335211758,1723983031930,-550.0,0.0001,2]
[335211759,1723983031940,-1397.45840494,0.0001,2]
[335211760,1723983031949,-173.98549609,0.00010009,2]
[335211761,1723983031959,-915.14996144,0.00010009,2]
[335211762,1723983031968,-510.29,0.0001002,2]
[335211763,1723983031978,-330.34282033,0.00010026,2]
[335211764,1723983031987,-365.67,0.00010474,2]
[335211765,1723983031996,-3998.55918369,0.00010699,2]
[335211766,1723983032008,-5024.18995364,0.00010699,2]
[335211767,1723983032018,-252.82447441,0.00010699,2]
[335211768,1723983032027,-1478.73960461,0.00010861,2]
[335211769,1723983032038,-260.83056743,0.00010861,2]
[335211770,1723983032047,-155.05208207,0.00010862,2]
[335211771,1723983032056,-155.09154762,0.00010862,2]
[335211773,1723983032066,-155.09610649,0.00010888,2]
[335211775,1723983032074,-486.0212222,0.00010888,2]
[335211777,1723983032083,-259.95187794,0.00010888,2]
[335211779,1723983032092,-155.09290092,0.00010888,2]
[335211781,1723983032102,-2122.62516288,0.00010888,2]
[335211783,1723983032111,-150.0,0.00010889,2]
[335211785,1723983032120,-626.83249,0.0001089,2]
[335211786,1723983032129,-179.99,0.0001089,2]
[335211788,1723983032138,-419.31016917,0.0001089,2]
[335211790,1723983032147,-236.34424982,0.0001089,2]
[335211792,1723983032156,-366.0,0.00010893,2]
[335211794,1723983032165,-499.99,0.00010893,2]
[335211796,1723983032175,-1416.104,0.00010896,2]
[335211798,1723983032184,-2251.4869,0.00010899,2]
[335211800,1723983032193,-500.0,0.00010899,2]
[335211802,1723983032203,-1000.0,0.00010899,2]
[335211804,1723983032212,-3720.40352978,0.00010899,2]
[335211807,1723983032226,-738.36549,0.00010899,2]
[335211809,1723983032237,-436.55278022,0.00010899,2]
[335211811,1723983032247,-1000.0,0.00010899,2]
[335211813,1723983032256,-3008.37994017,0.000109,2]
[335211815,1723983032265,-1473.93269171,0.000109,2]
[335211816,1723983032276,-608.7,0.000109,2]
[335211817,1723983032291,-925.74724846,0.000109,2]
[335211818,1723983032299,-274.25275154,0.000109,2]
[335211819,1723983037855,-155.0,0.00010899,2]
[335211820,1723983037865,-2734.12718863,0.000109,2]
[335211821,1723983037874,-3008.37994017,0.000109,2]
[335211822,1723983037883,-192.42590303,0.000109,2]
[335211823,1723983037893,-489.46051109,0.000109,2]
[335211824,1723983037902,-3008.37994017,0.000109,2]
[335211825,1723983037911,-356.76,0.000109,2]
[335211826,1723983037921,-168.65789786,0.000109,2]
[335211827,1723983037930,-236.08887295,0.000109,2]
[335211828,1723983037940,-1000.0,0.000109,2]
[335211829,1723983037950,-757.72079203,0.000109,2]
[335211830,1723983037960,-188.69565719,0.000109,2]
[335211831,1723983037970,-294.8,0.00010959,2]
[335211832,1723983037979,-250.0,0.00010959,2]
[335211833,1723983037989,-500.0,0.0001096,2]
[335211834,1723983037999,-298.73770459,0.00010979,2]
[335211835,1723983038008,-160.30138954,0.00010997,2]
[335211836,1723983038018,-151.0,0.00010997,2]
[335211837,1723983038027,-151.0,0.00010997,2]
[335211838,1723983038037,-151.0,0.00010997,2]
[335211839,1723983038046,-151.0,0.00010997,2]
[335211840,1723983038056,-396.690264,0.00010997,2]
[335211841,1723983038066,-396.690264,0.00010997,2]
[335211842,1723983038075,-151.0,0.00010997,2]
[335211843,1723983038085,-151.0,0.00010997,2]
[335211844,1723983038094,-1282.41111632,0.00010997,2]
[335211845,1723983038104,-210.274518,0.00010998,2]
[335211846,1723983038113,-158.4511854,0.00010998,2]
[335211847,1723983038122,-500.0,0.00010998,2]
[335211848,1723983038132,-500.0,0.00010998,2]
[335211849,1723983038141,-501.64260978,0.00010998,2]
[335211850,1723983038151,-1257.7511807,0.00010998,2]
[335211851,1723983038160,-1536.8128609,0.00010998,2]
[335211852,1723983038170,-228546.10352084,0.00010999,2]
[335211853,1723983038179,-151.644668,0.00010999,2]
[335211854,1723983038189,-151.0,0.00010999,2]
[335211855,1723983038198,-151.0,0.00010999,2]
[335211856,1723983038207,-151.0,0.00010999,2]
[335211857,1723983038217,-151.862069,0.00010999,2]
[335211858,1723983038226,-151.840431,0.00010999,2]
[335211860,1723983038236,-151.1872,0.00010999,2]
[335211862,1723983038245,-151.586059,0.00010999,2]
[335211864,1723983038254,-151.0,0.00010999,2]
[335211866,1723983038263,-2000.0,0.00010999,2]
[335211868,1723983038272,-2000.0,0.00010999,2]
[335211870,1723983038281,-2000.0,0.00010999,2]
[335211872,1723983038291,-2000.0,0.00010999,2]
[335211874,1723983038300,-2000.0,0.00010999,2]
[335211876,1723983038309,-2000.0,0.00010999,2]
[335211878,1723983038318,-2021.234,0.00010999,2]
[335211880,1723983038327,-151.0,0.00010999,2]
[335211882,1723983038337,-151.0,0.00010999,2]
[335211884,1723983038346,-151.0,0.00010999,2]
[335211886,1723983038356,-292.341941,0.00010999,2]
[335211888,1723983038365,-151.0,0.00010999,2]
[335211890,1723983038374,-153.987602,0.00010999,2]
[335211892,1723983038383,-151.0,0.00010999,2]
[335211894,1723983038393,-151.0,0.00010999,2]
[335211896,1723983038402,-151.0,0.00010999,2]
[335211898,1723983038411,-151.0,0.00010999,2]
[335211900,1723983038421,-151.679642,0.00010999,2]
[335211902,1723983038430,-151.0,0.00010999,2]
[335211903,1723983038439,-151.0,0.00010999,2]
[335211905,1723983038449,-151.0,0.00010999,2]
[335211907,1723983038458,-151.0,0.00010999,2]
[335211909,1723983038468,-151.0,0.00010999,2]
[335211911,1723983038478,-2000.0,0.00010999,2]
[335211913,1723983038488,-151.0,0.00010999,2]
[335211915,1723983038497,-151.0,0.00010999,2]
[335211916,1723983038507,-151.0,0.00010999,2]
[335211918,1723983038516,-151.0,0.00010999,2]
[335211920,1723983038525,-151.0,0.00010999,2]
[335211922,1723983038535,-151.0,0.00010999,2]
[335211924,1723983038544,-151.0,0.00010999,2]
[335211926,1723983038554,-152.053308,0.00010999,2]
[335211928,1723983038563,-151.0,0.00010999,2]
[335211930,1723983038573,-151.0,0.00010999,2]
[335211932,1723983038582,-494.000819,0.00010999,2]
[335211934,1723983038592,-494.000819,0.00010999,2]
[335211935,1723983038601,-152.335668,0.00010999,2]
[335211937,1723983038610,-494.000819,0.00010999,2]
[335211939,1723983038620,-494.000819,0.00010999,2]
[335211941,1723983038629,-334.457157,0.00010999,2]
[335211943,1723983038639,-151.0,0.00010999,2]
[335211945,1723983038648,-334.457157,0.00010999,2]
[335211947,1723983038658,-151.0,0.00010999,2]
[335211949,1723983038667,-274.793472,0.00010999,2]
[335211951,1723983038678,-151.0,0.00010999,2]
[335211953,1723983038688,-265.034012,0.00010999,2]
[335211955,1723983038697,-151.0,0.00010999,2]
[335211957,1723983038707,-151.0,0.00010999,2]
[335211959,1723983038717,-151.0,0.00010999,2]
[335211961,1723983038731,-151.0,0.00010999,2]
[335211963,1723983038740,-254.941666,0.00010999,2]
[335211965,1723983038749,-588.214934,0.00010999,2]
[335211967,1723983038759,-151.0,0.00010999,2]
[335211969,1723983038768,-151.0,0.00010999,2]
[335211971,1723983038777,-151.0,0.00010999,2]
[335211973,1723983038787,-151.0,0.00010999,2]
[335211975,1723983038796,-588.214934,0.00010999,2]
[335211977,1723983038806,-452.170369,0.00010999,2]
[335211979,1723983038816,-151.0,0.00010999,2]
[335211981,1723983038825,-452.170369,0.00010999,2]
[335211983,1723983038835,-151.0,0.00010999,2]
[335211985,1723983038844,-151.0,0.00010999,2]
[335211987,1723983038853,-233.222674,0.00010999,2]
[335211989,1723983038863,-452.170369,0.00010999,2]
[335211991,1723983038872,-452.170369,0.00010999,2]
[335211993,1723983038881,-151.0,0.00010999,2]
[335211994,1723983038890,-151.0,0.00010999,2]
[335211996,1723983038900,-773.318658,0.00010999,2]
[335211998,1723983038910,-773.318658,0.00010999,2]
[335212000,1723983038920,-773.318658,0.00010999,2]
[335212002,1723983038929,-773.318658,0.00010999,2]
[335212004,1723983038938,-151.0,0.00010999,2]
[335212006,1723983038949,-151.0,0.00010999,2]
[335212008,1723983038958,-151.0,0.00010999,2]
[335212010,1723983038968,-151.0,0.00010999,2]
[335212012,1723983038978,-151.0,0.00010999,2]
[335212014,1723983038987,-151.0,0.00010999,2]
[335212016,1723983038996,-244.87248,0.00010999,2]
[335212018,1723983039005,-152.464428,0.00010999,2]
[335212020,1723983039014,-151.0,0.00010999,2]
[335212022,1723983039025,-151.577324,0.00010999,2]
[335212024,1723983039034,-151.0,0.00010999,2]
[335212026,1723983039043,-152.800451,0.00010999,2]
[335212028,1723983039053,-151.0,0.00010999,2]
[335212030,1723983039062,-36.05578286,0.00010999,2]
[335212033,1723983039076,-114.94421714,0.00010999,2]
[335212034,1723983039085,-151.0,0.00010999,2]
[335212036,1723983039094,-396.690264,0.00010999,2]
[335212038,1723983039104,-396.690264,0.00010999,2]
[335212040,1723983039113,-396.690264,0.00010999,2]
[335212042,1723983039122,-396.690264,0.00010999,2]
[335212044,1723983039131,-396.690264,0.00010999,2]
[335212046,1723983039141,-396.690264,0.00010999,2]
[335212048,1723983039150,-151.0,0.00010999,2]
[335212050,1723983039159,-151.0,0.00010999,2]
[335212052,1723983039169,-151.0,0.00010999,2]
[335212054,1723983039178,-151.0,0.00010999,2]
[335212056,1723983039187,-153.214871,0.00010999,2]
[335212058,1723983039197,-151.0,0.00010999,2]
[335212060,1723983039206,-151.0,0.00010999,2]
[335212062,1723983039215,-151.0,0.00010999,2]
[335212063,1723983039224,-151.0,0.00010999,2]
[335212065,1723983039234,-151.0,0.00010999,2]
[335212067,1723983039243,-151.0,0.00010999,2]
[335212069,1723983039252,-151.0,0.00010999,2]
[335212071,1723983039262,-151.0,0.00010999,2]
[335212073,1723983039271,-151.0,0.00010999,2]
[335212075,1723983039280,-500.0,0.00010999,2]
[335212077,1723983039289,-230.21188185,0.00010999,2]
[335212079,1723983039298,-1126.053651,0.00010999,2]
[335212081,1723983039307,-1126.053651,0.00010999,2]
[335212083,1723983039316,-1126.053651,0.00010999,2]
[335212085,1723983039327,-500.0,0.00010999,2]
[335212087,1723983039336,-500.0,0.00010999,2]
[335212089,1723983039345,-500.0,0.00010999,2]
[335212091,1723983039355,-500.0,0.00010999,2]
[335212093,1723983039363,-500.0,0.00010999,2]
[335212095,1723983039373,-551.13049724,0.00010999,2]
[335212097,1723983039382,-1126.053651,0.00010999,2]
[335212099,1723983039392,-151.30734477,0.00010999,2]
[335212102,1723983039408,-974.74630623,0.00010999,2]
[335212104,1723983039418,-1126.053651,0.00010999,2]
[335212106,1723983039427,-34.54352052,0.00010999,2]
[335212157,1723983039906,-966.94255577,0.00010566,2]
[335212539,1723983043657,-534.2656748,0.00010566,2]
[335212541,1723983043669,-601.36,0.00010566,2]
[335212617,1723983044424,250.0,0.00013111,30]
[335212747,1723983046008,-7173.00538117,0.00010566,2]
[335212748,1723983046018,-251.47684148,0.00010999,2]
[335212749,1723983046028,-286.020362,0.00010999,2]
[335212750,1723983046038,-286.020362,0.00010999,2]
[335212751,1723983046047,-286.020362,0.00010999,2]
[335212752,1723983046057,-167.0,0.00010999,2]
[335212753,1723983046067,-286.020362,0.00010999,2]
[335212754,1723983046077,-286.020362,0.00010999,2]
[335212755,1723983046086,-151.0,0.00010999,2]
[335212756,1723983046096,-151.0,0.00010999,2]
[335212757,1723983046105,-151.0,0.00010999,2]
[335212758,1723983046117,-151.0,0.00010999,2]
[335212759,1723983046129,-151.0,0.00010999,2]
[335212760,1723983046139,-151.0,0.00010999,2]
[335212761,1723983046149,-1174.0828879,0.00010999,2]
[335213805,1723983063080,500.0,8.22e-05,2]
[335213806,1723983077751,227.149,9.899e-05,2]
[335213808,1723983103679,251.06470422,9.926e-05,2]
[335213809,1723983136102,393.43,8.386e-05,2]
[335213813,1723983350815,250.14,9.961e-05,2]
[335213814,1723983391611,200.0,9.93e-05,2]
[335213816,1723983419669,1219.95,9.925e-05,2]
[335213817,1723983423345,1943.26,9.918e-05,2]
[335213818,1723983453785,3022.5,9.926e-05,2]
[335213819,1723983468687,250.0,9.936e-05,2]
[335213820,1723983511433,217.21,9.931e-05,2]
[335213821,1723983637696,373.75,8.219e-05,2]
[335213822,1723983638393,900.96,9.917e-05,2]
[335213823,1723983682551,1852.42,9.945e-05,2]
[335213825,1723983778336,590.08,9.909e-05,2]
[335213826,1723983787135,805.16,9.918e-05,2]
[335213827,1723983795518,559.09,9.923e-05,2]
[335213828,1723983816978,304.92,9.963e-05,2]
[335213829,1723983825637,1319.22,9.959e-05,2]
[335213830,1723983826889,1435.37,9.976e-05,2]
[335213833,1723983937122,561.88444547,9.5e-05,2]
[335213848,1723984096442,355.06,8.219e-05,2]
[335213871,1723984232080,-199.88,9.988e-05,2]
[335213872,1723984232090,-2429.18500109,9.993e-05,2]
[335213873,1723984232101,-3952.58499891,9.993e-05,2]
[335213874,1723984232110,-547.41500109,9.999e-05,2]
[335213875,1723984232143,-1177.58499891,9.999e-05,2]
[335213876,1723984232153,-2620.76271859,0.0001,2]
[335213877,1723984232164,-1881.40812481,0.0001,2]
[335213878,1723984232177,-295.35550784,0.0001,2]
[335213879,1723984232187,-300.0,0.00010008,2]
[335213880,1723984232196,-493.59808335,0.00010009,2]
[335213881,1723984232207,-150.0,0.00010025,2]
[335213882,1723984232217,-4929.88533716,0.00010026,2]
[335213883,1723984232228,-4345.68827458,0.00010026,2]
[335213884,1723984232238,-155.0,0.00010026,2]
[335213885,1723984232247,-155.0,0.00010026,2]
[335213886,1723984232256,-343.79918605,0.00010026,2]
[335213887,1723984232266,-409.92,0.00010051,2]
[335213888,1723984232275,-171.07,0.00010271,2]
[335213889,1723984232284,-272.98,0.00010271,2]
[335213890,1723984232294,-179.99,0.00010271,2]
[335213891,1723984232303,-915.14996144,0.00010471,2]
[335213892,1723984232312,-355.06,0.00010471,2]
[335213893,1723984232322,-891.21182018,0.00010505,2]
[335213895,1723984232333,-563.10986677,0.00010505,2]
[335213898,1723984232348,-1.08831305,0.00010505,2]
[335213900,1723984232358,-330.34282033,0.00010505,2]
[335213902,1723984232368,-499.99,0.00010566,2]
[335213903,1723984232377,-224.24,0.00010566,2]
[335213905,1723984232386,-298.73770459,0.00010699,2]
[335213907,1723984232396,-835.5,0.000107,2]
[335213909,1723984232405,-1000.0,0.000107,2]
[335213910,1723984232415,-856.8,0.00010799,2]
[335213911,1723984232424,-426.67,0.000108,2]
[335213912,1723984232433,-349.94998142,0.000108,2]
[335213913,1723984232444,-6.81001858,0.000108,2]
[335213914,1723984232453,-479.80824743,0.000108,2]
[335213915,1723984232465,-948.19175257,0.000108,2]
[335213916,1723984232474,-2918.3701,0.000108,2]
[335213917,1723984232484,-304.96596724,0.00010835,2]
[335213918,1723984232493,-66066.5816659,0.0001088,2]
[335213919,1723984232504,-1237.5487168,0.0001088,2]
[335213920,1723984237876,-915.14996144,0.00010097,2]
[335213921,1723984237886,-4689.11744328,0.0001088,2]
[335213929,1723984240153,-10379.10066685,0.0001088,2]
[335213930,1723984240378,-2951.7197915,0.0001088,2]
[335214013,1723984246067,-330.34282033,0.00010471,2]
[335214014,1723984246076,-3615.56835351,0.0001088,2]
[335214015,1723984246086,-2285.67614838,0.00010889,2]
[335214016,1723984246095,-233.86855,0.0001089,2]
[335214017,1723984246104,-9840.0201,0.00010899,2]
[335214018,1723984246115,-11360.8134,0.00010899,2]
[335214019,1723984246126,-2047.5944,0.00010899,2]
[335214020,1723984246140,-1000.0,0.00010899,2]
[335214021,1723984246150,-500.0,0.00010899,2]
[335214022,1723984246160,-1263.1384,0.00010899,2]
[335214023,1723984246169,-395.7761,0.00010899,2]
[335214024,1723984246180,-2025.8084,0.000109,2]
[335214025,1723984246190,-7500.0,0.000109,2]
[335214026,1723984246201,-2500.0,0.000109,2]
[335214027,1723984246214,-152.67384191,0.000109,2]
[335214028,1723984246223,-133.07940093,0.000109,2]
[335214029,1723984246235,-32.54926293,0.000109,2]
[335214030,1723984246244,-6039.954,0.000109,2]
[335214031,1723984246253,-16937.76910874,0.000109,2]
[335214032,1723984246264,-165.19422617,0.000109,2]
[335214033,1723984246273,-179.860757,0.000109,2]
[335214034,1723984246282,-179.860757,0.000109,2]
[335214035,1723984246291,-1619.64677314,0.000109,2]
[335214037,1723984246300,-312.82894507,0.000109,2]
[335214039,1723984246310,-157.63662071,0.000109,2]
[335214041,1723984246319,-180.86721809,0.000109,2]
[335214043,1723984246328,-306.29,0.00010945,2]
[335214045,1723984246338,-250.0,0.00010959,2]
[335214047,1723984246347,-256.52,0.00010959,2]
[335214048,1723984246356,-333.31,0.00010959,2]
[335214049,1723984246365,-500.0,0.0001096,2]
[335214050,1723984246377,-160.05579524,0.00010997,2]
[335214051,1723984246386,-150.01,0.00010998,2]
[335214052,1723984246395,-173.8915661,0.00010998,2]
[335214053,1723984246404,-8510.0916467,0.00010998,2]
[335214054,1723984246413,-2269.270106,0.00010998,2]
[335214055,1723984246423,-2269.270106,0.00010998,2]
[335214056,1723984246432,-251.782312,0.00010998,2]
[335214057,1723984246441,-151.0,0.00010998,2]
[335214058,1723984246451,-251.782312,0.00010998,2]
[335214059,1723984246460,-151.0,0.00010998,2]
[335214060,1723984246470,-151.0,0.00010998,2]
[335214061,1723984246479,-238.014159,0.00010998,2]
[335214062,1723984246488,-238.014159,0.00010998,2]
[335214063,1723984246497,-151.0,0.00010998,2]
[335214064,1723984246507,-151.0,0.00010998,2]
[335214065,1723984246515,-151.0,0.00010998,2]
[335214066,1723984246527,-301.011441,0.00010998,2]
[335214067,1723984246539,-301.011441,0.00010998,2]
[335214068,1723984246548,-151.310812,0.00010999,2]
[335214069,1723984246558,-2000.0,0.00010999,2]
[335214070,1723984246569,-2000.0,0.00010999,2]
[335214071,1723984246579,-544.8936,0.00010999,2]
[335214072,1723984246589,-1000.0,0.00010999,2]
[335214073,1723984246601,-1000.0,0.00010999,2]
[335214074,1723984246610,-1000.0,0.00010999,2]
[335214075,1723984246621,-1000.0,0.00010999,2]
[335214076,1723984246631,-1000.0,0.00010999,2]
[335214077,1723984246642,-1000.0,0.00010999,2]
[335214078,1723984246653,-1000.0,0.00010999,2]
[335214079,1723984246662,-1000.0,0.00010999,2]
[335214080,1723984246672,-1000.0,0.00010999,2]
[335214081,1723984246683,-1000.0,0.00010999,2]
[335214082,1723984246693,-1000.0,0.00010999,2]
[335214083,1723984246704,-1000.0,0.00010999,2]
[335214084,1723984246714,-155.10125735,0.00010999,2]
[335214085,1723984246723,-151.0,0.00010999,2]
[335214086,1723984246734,-151.0,0.00010999,2]
[335214087,1723984246745,-151.0,0.00010999,2]
[335214088,1723984246756,-151.935308,0.00010999,2]
[335214089,1723984246765,-151.0,0.00010999,2]
[335214090,1723984246774,-151.0,0.00010999,2]
[335214091,1723984246783,-151.0,0.00010999,2]
[335214092,1723984246793,-1091.88275774,0.00010999,2]
[335214093,1723984246802,-151.0,0.00010999,2]
[335214094,1723984246813,-151.0,0.00010999,2]
[335214095,1723984246823,-151.0,0.00010999,2]
[335214096,1723984246835,-151.337289,0.00010999,2]
[335214097,1723984246845,-542.203064,0.00010999,2]
[335214098,1723984246856,-542.203064,0.00010999,2]